[Event "FRA-ch Teams Top 16-A 2022"]
[Site "Chartres"]
[Date "2022.06.15"]
[Round "7.24"]
[White "Martsynovskaya, Marina"]
[Black "Rouzes, Sibylle-Anne"]
[Result "1-0"]
[ECO "B18"]
[WhiteElo "2070"]
[BlackElo "1580"]
[Annotator "NA RC"]
[PlyCount "45"]
[EventDate "2022.06.09"]
[EventType "team-tourn"]
[EventCountry "FRA"]
[SourceTitle "playchess.com"]
[Source "ChessBase"]
[SourceQuality "1"]
[TimeControl "40/5400+30:1800+30"]

1. e4 {[%emt 0:00:01]} c6 {[%emt 0:00:06]} 2. d4 {[%emt 0:00:27]} d5 {[%emt 0:00:09]} 3. Nc3 {[%emt 0:00:08]} dxe4 {[%emt 0:00:36]} 4. Nxe4 {[%emt 0:00:13]} Bf5 {[%emt 0:01:05]} 5. Ng3 {[%emt 0:00:10]} Bg6 {[%emt 0:00:28]} 6. Bc4 {[%emt 0:00:51]} e6 {[%emt 0:01:48]} 7. N1e2 {[%emt 0:00:10]} Nf6 {[%emt 0:11:23]} 8. Nf4 {[%emt 0:04:46]} Nd5 {[%emt 0:12:01]} 9. Nxg6 {[%emt 0:13:43]} hxg6 {[%emt 0:00:17]} 10. Bb3 {[%emt 0:05:02]} Bd6 {[%emt 0:23:23]} 11. Qf3 {[%emt 0:18:42]} Nf6 {[%emt 0:29:16]} 12. c3 {[%emt 0:04:34]} Nbd7 {[%emt 0:02:05]} 13. Bg5 {[%emt 0:01:23]} Qc7 {[%emt 0:04:22]} 14. O-O-O {[%emt 0:00:58]} Nd5 {[%emt 0:09:12]} 15. Kb1 {[%emt 0:02:37]} Bf4 {[%emt 0:00:55]} 16. Bxf4 {[%emt 0:01:44]} Nxf4 {[%emt 0:00:24]} 17. Ne4 {[%emt 0:00:13]} Nd5 {[%emt 0:00:55]} 18. c4 {[%emt 0:06:16]} N5f6 {[%emt 0:00:29]} 19. d5 {[%emt 0:09:26]} exd5 {[%emt 0:00:33]} 20. cxd5 {[%emt 0:00:42]} cxd5 {[%emt 0:00:32]} 21. Bxd5 {[%emt 0:01:32]} Nxd5 {[%emt 0:00:28]} 22. Rxd5 {[%emt 0:00:18]} O-O {[%emt 0:00:32]} 23. Rc1 {[%emt 0:00:13]} 1-0

[Event "FRA-ch Teams Top 16-A 2022"]
[Site "Chartres"]
[Date "2022.06.15"]
[Round "7.25"]
[White "Alonso Rosell, Alvar"]
[Black "Van Foreest, Lucas"]
[Result "1/2-1/2"]
[ECO "E04"]
[WhiteElo "2557"]
[BlackElo "2572"]
[Annotator "TA"]
[PlyCount "40"]
[EventDate "2022.06.09"]
[EventType "team-tourn"]
[EventCountry "FRA"]
[SourceTitle "playchess.com"]
[Source "ChessBase"]
[SourceQuality "1"]
[TimeControl "40/5400+30:1800+30"]

{[%evp 11,40,20,22,17,11,3,10,8,18,4,12,4,13,12,13,10,9,7,37,13,13,11,11,7,43,47,48,8,23,8,25]} 1. d4 {[%emt 0:00:04]} d5 {[%emt 0:00:49]} 2. c4 {[%emt 0:00:06]} e6 {[%emt 0:00:02]} 3. Nf3 {[%emt 0:00:06]} Nf6 {[%emt 0:00:05]} 4. g3 {[%emt 0:00:04]} dxc4 {[%emt 0:00:53]} 5. Bg2 {[%emt 0:00:07]} Bb4+ {[%emt 0:00:06]} 6. Bd2 {[%emt 0:00:20]} a5 {[%emt 0:00:08]} 7. a3 {[%emt 0:00:48] E04: Open Catalan: 5 Nf3.} Bxd2+ {[%emt 0:09:32]} 8. Nbxd2 {[%emt 0:00:09]} b5 $1 {[%emt 0:01:32]} 9. b3 $1 {[%emt 0:00:06]} cxb3 {[%emt 0:03:21]} 10. Qxb3 {[%emt 0:00:37]} c6 {[%emt 0:00:27]} 11. O-O {[%emt 0:00:25][%mdl 1024] White has compensation.} O-O {[%emt 0:00:08]} 12. Rfc1 {[%emt 0:00:26]} Bb7 {[%emt 0:01:30]} 13. Qb2 {[%emt 0:02:02]} Nbd7 {[%emt 0:08:56]} 14. Ne1 {[%emt 0:00:16] [#]} Rb8 $146 {[%emt 0:13:15][%cal Oe6e5]} ({Predecessor:} 14... Qb6 15. Nd3 Rfc8 16. Nb3 Rab8 17. e3 Nd5 18. h3 h6 19. Rc2 Ba6 20. Nbc5 Nxc5 21. Nxc5 {1-0 (47) Kuzubov,Y (2643)-Matlakov,M (2685) Chess.com INT 2020}) 15. Nd3 {[%emt 0:10:13]} Qb6 {[%emt 0:01:48]} 16. Nb3 {[%emt 0:05:02]} Rfd8 {[%emt 0:01:49]} 17. Rc2 {[%emt 0:05:26]} Ne8 {[%emt 0:00:55]} 18. Rac1 {[%emt 0:18:25]} Nd6 {[%emt 0:00:44]} 19. Nd2 {[%emt 0:19:25] Prevents Nc4.} (19. Nbc5 $5 {[%cal Rc5b7]}) 19... Ba8 {[%emt 0:09:25]} 20. e3 {[%emt 0:05:42][%cal Rc2c6]} ({Not} 20. Bxc6 $2 Nc4 21. Qxb5 Qxb5 $19) 20... Qa6 {[%emt 0:02:27] Weighted Error Value: White=0.06 (flawless) /Black=0.05 (flawless)} ({Don't take} 20... Nc4 21. Nxc4 bxc4 22. Qxb6 Rxb6 23. Rxc4 $14) 1/2-1/2

[Event "FRA-ch Teams Top 16-A 2022"]
[Site "Chartres"]
[Date "2022.06.15"]
[Round "7.26"]
[White "Piorun, Kacper"]
[Black "Song, Julien"]
[Result "1-0"]
[ECO "C78"]
[WhiteElo "2635"]
[BlackElo "2388"]
[Annotator "TA"]
[PlyCount "63"]
[EventDate "2022.06.09"]
[EventType "team-tourn"]
[EventCountry "FRA"]
[SourceTitle "playchess.com"]
[Source "ChessBase"]
[SourceQuality "1"]
[TimeControl "40/5400+30:1800+30"]

{[%evp 22,63,19,29,24,49,41,13,10,0,37,0,137,133,155,149,125,89,97,109,96,67,67,60,113,114,134,131,136,114,127,97,220,230,515,516,807,810,2306,2306,2150,2166,1335,1123]} 1. e4 {[%emt 0:00:04]} e5 {[%emt 0:00:27]} 2. Nf3 {[%emt 0:00:11]} Nc6 {[%emt 0:00:33]} 3. Bb5 {[%emt 0:00:13][%cal Bf1b5,Bb5a4,Ba4b3][%mdl 32]} a6 {[%emt 0:00:50]} 4. Ba4 {[%emt 0:00:16]} Nf6 {[%emt 0:00:36]} 5. O-O {[%emt 0:00:41]} Bc5 {[%emt 0:00:49]} 6. c3 {[%emt 0:06:09]} b5 {[%emt 0:01:05]} 7. Bb3 {[%emt 0:00:22]} d6 {[%emt 0:00:59]} 8. a4 {[%emt 0:06:27]} Bb7 {[%emt 0:01:08]} 9. d4 {[%emt 0:01:18]} Bb6 {[%emt 0:01:38]} 10. Re1 {[%emt 0:01:09]} O-O {[%emt 0:01:39] 10...0-0 is better than 10...h6.} 11. Bg5 {[%emt 0:14:16][%cal Bc1g5,Bg5h4,Bh4g3][%mdl 32]} h6 {[%emt 0:01:29]} 12. Bh4 {[%emt 0:00:19]} exd4 {[%emt 0:05:59] C78: Ruy Lopez: Archangelsk and Möller Defences.} 13. cxd4 {[%emt 0:05:48]} g5 {[%emt 0:00:30]} 14. Bg3 {[%emt 0:01:42]} Re8 {[%emt 0:33:47] The position is equal.} 15. Nc3 {[%emt 0:07:58] e5 is the strong threat.} b4 {[%emt 0:24:34]} 16. Nd5 {[%emt 0:00:13] [#]} Nxd5 $146 {[%emt 0:00:48]} ({But not} 16... Nxe4 17. Nd2 Nf6 18. Rxe8+ Nxe8 19. Qh5 (19. Nxb6 cxb6 20. Nc4 Na5 $11) 19... Bxd4 20. Nb6 $1) (16... Na5 $1 $11 {keeps the balance.}) ({Predecessor:} 16... Na5 17. Nxf6+ Qxf6 18. e5 Qg7 19. Bc2 Rad8 20. exd6 cxd6 21. Rxe8+ Rxe8 22. Bxd6 b3 {½-½ (33) Sorbi,L (1931)-Douglas,M (2000) FICGS email 2014}) 17. Bxd5 $16 {[%emt 0:00:31][%cal Oa4a5] Black must now prevent a5!} Na5 {[%emt 0:00:42]} 18. Bxb7 {[%emt 0:09:12]} Nxb7 {[%emt 0:00:02]} 19. Qb3 {[%emt 0:00:46]} Na5 {[%emt 0:08:20]} 20. Qxb4 {[%emt 0:06:36]} c5 {[%emt 0:00:04]} 21. dxc5 {[%emt 0:01:29]} Bxc5 {[%emt 0:00:11]} 22. Qc3 {[%emt 0:00:17] Hoping for b4.} Rc8 {[%emt 0:00:59] [#]} (22... Rb8 $14) 23. Qd3 $1 $36 {[%emt 0:01:00][%mdl 2048] White is on the roll. White is more active.} Qb6 {[%emt 0:00:49]} 24. e5 {[%emt 0:11:38]} dxe5 {[%emt 0:01:14]} 25. Nxe5 {[%emt 0:00:32]} Bd4 {[%emt 0:06:48]} 26. h4 {[%emt 0:07:07]} Rcd8 {[%emt 0:03:47] This move loses the game for Black.} (26... gxh4 $16 27. Re4 Bxe5 28. Bxe5 Qg6) 27. Qf3 $18 {[%emt 0:05:56]} Qb3 {[%emt 0:00:16]} (27... Bxe5 {was necessary.} 28. Bxe5 Qc6) 28. Qh5 $1 {[%emt 0:03:05][%csl LRg5,LRh6] White is clearly winning.} Re7 {[%emt 0:00:53] [#]} (28... Bxe5 $142 29. Bxe5 Qb6 30. hxg5 Qg6 31. Qxg6+ fxg6) 29. Ng4 $1 {[%emt 0:01:05]} Rxe1+ {[%emt 0:03:18]} (29... Nc6 30. Nxh6+) 30. Rxe1 {[%emt 0:00:02]} Bg7 {[%emt 0:00:37]} 31. Nxh6+ {[%emt 0:00:31]} Bxh6 {[%emt 0:00:08]} 32. Qxh6 {[%emt 0:00:06] Weighted Error Value: White=0.06 (flawless) /Black=0.52} 1-0

[Event "FRA-ch Teams Top 16-A 2022"]
[Site "Chartres"]
[Date "2022.06.15"]
[Round "7.27"]
[White "Ramirez Garcia, Jorge Alberto"]
[Black "Malakhov, Vladimir"]
[Result "0-1"]
[ECO "C47"]
[WhiteElo "2242"]
[BlackElo "2652"]
[Annotator "TA"]
[PlyCount "64"]
[EventDate "2022.06.09"]
[EventType "team-tourn"]
[EventCountry "FRA"]
[SourceTitle "playchess.com"]
[Source "ChessBase"]
[SourceQuality "1"]
[TimeControl "40/5400+30:1800+30"]

{[%evp 16,64,15,0,33,33,44,-94,-83,-96,-81,-76,-81,-47,-70,-56,-28,-33,-32,-44,-35,-39,-43,-29,-22,-23,-23,-56,-58,-100,-95,-102,-96,-120,-105,-105,-79,-194,-198,-249,-227,-390,-384,-674,-670,-710,-743,-831,-817,-816,-792]} 1. e4 {[%emt 0:00:03]} e5 {[%emt 0:00:12]} 2. Nf3 {[%emt 0:00:07]} Nc6 {[%emt 0:00:05]} 3. Nc3 {[%emt 0:00:05]} Nf6 {[%emt 0:00:34]} 4. d4 {[%emt 0:00:06]} exd4 {[%emt 0:00:08]} 5. Nxd4 {[%emt 0:00:04]} Bb4 {[%emt 0:00:10]} 6. Nxc6 {[%emt 0:00:06]} bxc6 {[%emt 0:00:06]} 7. Bd3 {[%emt 0:00:05]} O-O {[%emt 0:00:09][%cal Bh8f8,Bf8e8,Be8e5][%mdl 32]} 8. O-O {[%emt 0:00:06]} Re8 {[%emt 0:00:21]} 9. Bg5 {[%emt 0:08:55] 9.Bg5 is better than 9.Qf3.} Rb8 {[%emt 0:00:24] C47: Scotch Four Knights and Four Knights with 4 g3.} 10. f4 {[%emt 0:05:37] Threatens to win with e5.} h6 {[%emt 0:05:33] [#]} 11. e5 $146 {[%emt 0:21:08]} (11. Bh4 $14 Be7 12. e5) ({Predecessor:} 11. Bh4 Be7 12. Qf3 Rxb2 13. Bxf6 Bxf6 14. e5 Be7 15. Qe4 g6 16. f5 d5 17. Qf3 {½-½ (28) Tari,A (2639)-Aronian,L (2781) chess24.com INT 2021}) 11... hxg5 $17 {[%emt 0:01:30] Black is better.} 12. fxg5 {[%emt 0:00:46] [#]} Rxe5 $1 {[%emt 0:00:07]} 13. gxf6 {[%emt 0:03:09]} d5 {[%emt 0:00:19]} 14. fxg7 {[%emt 0:07:05]} Qg5 {[%emt 0:05:54] And now ...Bg4 would win. Dancing on a razor blade.} 15. Qf3 {[%emt 0:04:44][%csl Gf1][%cal Rf3f7]} Qe3+ {[%emt 0:00:49]} 16. Qxe3 {[%emt 0:06:18]} Rxe3 {[%emt 0:00:05]} 17. Na4 {[%emt 0:11:59]} Bd6 {[%emt 0:07:45]} 18. Rae1 {[%emt 0:01:34]} Rxe1 {[%emt 0:00:04]} 19. Rxe1 {[%emt 0:00:04]} Be6 {[%emt 0:01:01]} 20. b3 {[%emt 0:02:52]} (20. Rf1 {seems wilder.} a5 21. b3 Re8 22. h3) 20... Kxg7 {[%emt 0:09:24]} 21. g3 {[%emt 0:00:05]} c5 {[%emt 1:06:20][%cal Bc6c5,Bc5c4][%mdl 32]} 22. Be2 c4 {[%emt 0:00:00]} 23. Rd1 {[%emt 0:02:22] [#]} Rb5 $1 {[%emt 0:00:00]} 24. Bf3 {[%emt 0:02:39]} Ra5 {[%emt 0:00:00]} 25. Kf2 {[%emt 0:01:24]} Be5 {[%emt 0:00:00]} 26. Ke2 {[%emt 0:07:46] [#]} (26. Ke3 $17) 26... d4 $1 $19 {[%emt 0:00:00][%cal Od4d3]} 27. Rc1 {[%emt 0:03:40]} (27. Rf1 {was necessary.}) 27... Bf5 {[%emt 0:00:00][%cal Of5c2]} 28. Kd1 $2 {[%emt 0:00:35]} (28. c3 {keeps fighting.}) 28... c3 {[%emt 0:00:00] Hoping for ...Bf6.} 29. Be2 $2 {[%emt 0:01:39]} (29. Ke2 Bf6 30. h4) 29... Bf6 {[%emt 0:00:00] Black is clearly winning.} 30. Ke1 {[%emt 0:01:27]} Re5 {[%emt 0:00:00] Strongly threatening ...Bg4.} 31. Kf1 {[%emt 0:01:09]} Bg5 {[%emt 0:00:00]} 32. Rd1 {[%emt 0:00:23]} Bd2 {[%emt 0:00:00] Weighted Error Value: White=0.54/Black=0.04 (flawless)} 0-1

[Event "FRA-ch Teams Top 16-A 2022"]
[Site "Chartres"]
[Date "2022.06.15"]
[Round "7.28"]
[White "Vlachos, Anatole"]
[Black "Iglesias, Yosha"]
[Result "1-0"]
[ECO "C42"]
[WhiteElo "2410"]
[BlackElo "2202"]
[Annotator "TA"]
[PlyCount "111"]
[EventDate "2022.06.09"]
[EventType "team-tourn"]
[EventCountry "FRA"]
[SourceTitle "playchess.com"]
[Source "ChessBase"]
[SourceQuality "1"]
[TimeControl "40/5400+30:1800+30"]

{[%evp 12,111,51,48,54,63,57,59,56,42,53,47,47,52,47,48,64,64,47,61,54,32,33,37,51,34,32,33,55,19,11,-34,-29,-18,-17,-15,-2,-51,-49,-49,-47,-41,-39,-116,0,0,0,0,0,0,0,0,0,0,0,0,0,0,0,0,0,0,0,0,0,0,0,0,0,0,0,-8,18,18,18,18,18,18,74,74,77,71,135,145,141,130,138,141,299,301,300,296,293,268,544,544,537,529,500,493,1146,912]} 1. e4 {[%emt 0:00:15]} e5 {[%emt 0:00:11]} 2. Nf3 {[%emt 0:00:08]} Nf6 {[%emt 0:00:08]} 3. Nxe5 {[%emt 0:00:15]} Nxe4 {[%emt 0:00:17]} 4. Qe2 {[%emt 0:00:55]} Qe7 {[%emt 0:00:10]} 5. Qxe4 {[%emt 0:00:06]} d6 {[%emt 0:00:12]} 6. d4 {[%emt 0:00:29]} dxe5 {[%emt 0:00:14]} 7. dxe5 {[%emt 0:01:24]} Nc6 {[%emt 0:00:06] C42: Petroff Defence: 3 Nxe5 and unusual White 3rd moves.} 8. Nc3 $1 {[%emt 0:00:12][%mdl 4] is now more promising than 8.Bb5.} Qxe5 {[%emt 0:00:56]} 9. Qxe5+ {[%emt 0:00:15]} Nxe5 {[%emt 0:00:06] White is slightly better.} 10. Bf4 {[%emt 0:16:16]} Bd6 {[%emt 0:02:25][%cal Oe5f3]} 11. Bg3 {[%emt 0:00:07]} h5 {[%emt 0:04:48]} 12. O-O-O {[%emt 0:07:22] [#]} f6 $146 {[%emt 0:05:26]} ({Predecessor:} 12... Be6 13. Bb5+ Kf8 14. Rhe1 Nc4 15. Bxc4 Bxg3 16. Bxe6 Bf4+ 17. Kb1 fxe6 18. g3 Bd6 19. Rxe6 {1-0 (39) Bedic,N (1535)-Desnica,L (1663) Split 2021}) 13. Nb5 {[%emt 0:03:35]} h4 {[%emt 0:04:18]} 14. Nxd6+ {[%emt 0:01:49]} cxd6 {[%emt 0:00:32]} 15. Bf4 {[%emt 0:00:59]} Ke7 {[%emt 0:04:09]} 16. h3 {[%emt 0:03:04]} Bf5 {[%emt 0:13:42]} 17. Be2 {[%emt 0:02:43]} Rhc8 {[%emt 0:02:08]} 18. Rd2 {[%emt 0:02:49]} g5 {[%emt 0:03:40]} 19. Bh2 {[%emt 0:01:40]} Rc6 {[%emt 0:04:42]} 20. Kb1 {[%emt 0:17:35]} Rac8 {[%emt 0:05:24][%cal Rc6c2]} 21. Rc1 {[%emt 0:00:02]} (21. Bd1 {is more complex.} Nc4 22. Re1+ Kf7 23. Rd5) 21... d5 {[%emt 0:10:36][%cal Od5d4]} 22. Bb5 {[%emt 0:05:38]} Rc5 {[%emt 0:04:07]} 23. Ba4 {[%emt 0:00:38]} Kf7 {[%emt 0:20:54]} 24. b4 {[%emt 0:06:25]} (24. Bxe5 $11 fxe5 25. b4) 24... Rc4 $15 {[%emt 0:02:37]} 25. Bb3 {[%emt 0:07:15]} Rxb4 {[%emt 0:00:47]} 26. Rxd5 {[%emt 0:00:22] Threatens to win with Rb5+.} Be6 {[%emt 0:01:58]} 27. Rd6 {[%emt 0:00:01]} ({White should play} 27. Rdd1 $15) 27... Bxb3 {[%emt 0:00:28]} (27... Nc4 $17 28. Rd3 a5) 28. axb3 $11 {[%emt 0:00:58]} Re4 {[%emt 0:00:48]} 29. Rd2 {[%emt 0:00:34]} Nc6 {[%emt 0:02:12]} 30. f3 {[%emt 0:01:07]} Re6 {[%emt 0:00:56]} 31. f4 {[%emt 0:00:02]} Rce8 {[%emt 0:00:46]} 32. fxg5 {[%emt 0:01:08]} fxg5 {[%emt 0:00:04]} 33. Rf1+ {[%emt 0:00:30]} Kg6 {[%emt 0:00:06]} 34. Rff2 {[%emt 0:02:32]} Rf6 {[%emt 0:00:35]} 35. Rxf6+ {[%emt 0:01:20]} Kxf6 {[%emt 0:00:05][%mdl 4096] Endgame KRB-KRN} 36. Bd6 {[%emt 0:00:21]} Re1+ {[%emt 0:02:57]} 37. Kb2 {[%emt 0:00:18]} Ne5 {[%emt 0:00:41]} 38. Bb4 {[%emt 0:00:27]} Re4 {[%emt 0:00:46]} 39. Bc3 {[%emt 0:00:23]} Ke6 {[%emt 0:00:26]} 40. Rf2 {[%emt 0:05:45]} g4 {[%emt 0:02:56]} 41. hxg4 {[%emt 0:33:51]} Rxg4 {[%emt 0:03:11]} 42. Re2 {[%emt 0:00:00]} Rg5 {[%emt 0:00:36]} 43. Re4 {[%emt 0:00:00]} Kd5 {[%emt 0:03:38]} 44. Rd4+ {[%emt 0:00:00]} Kc6 {[%emt 0:05:17]} (44... Ke6 $11) 45. Rxh4 $16 {[%emt 0:00:00]} Ng6 {[%emt 0:00:34]} 46. Rc4+ {[%emt 0:00:00]} Kd5 {[%emt 0:05:19] [#]} (46... Kd7 $142) 47. g4 $1 {[%emt 0:00:00][%cal Bg2g4,Bg4g5,Bg5g6,Bg6g7][%mdl 32] And now Bf6 would win. White is more active.} b5 {[%emt 0:01:38]} 48. Rd4+ {[%emt 0:00:00]} Kc6 {[%emt 0:02:17]} 49. Bd2 {[%emt 0:00:00]} Rd5 {[%emt 0:04:15] This move loses the game for Black.} (49... Re5 $16 {was worth a try.} 50. g5 a6) 50. Rxd5 $18 {[%emt 0:00:00]} Kxd5 {[%emt 0:00:02] KB-KN} 51. g5 {[%emt 0:00:00]} Ne5 {[%emt 0:00:56]} 52. Bc3 {[%emt 0:00:00] Bxe5 is the strong threat.} Nc6 {[%emt 0:00:14]} (52... Ng6 53. Ka3 Kc6) 53. g6 {[%emt 0:00:00] aiming for Bf6. White is clearly winning.} Ke6 {[%emt 0:01:21] Prevents Bf6.} 54. g7 {[%emt 0:00:00]} Kf7 {[%emt 0:00:34]} 55. Bf6 {[%emt 0:00:00]} a6 {[%emt 0:02:47] [#]} (55... b4 $142 56. Kc1 a6) 56. c4 $1 {[%emt 0:00:00] Weighted Error Value: White=0.05 (flawless) /Black=0.20 (precise)} 1-0

[Event "FRA-ch Teams Top 16-A 2022"]
[Site "Chartres"]
[Date "2022.06.15"]
[Round "7.29"]
[White "Baillon, Olivier"]
[Black "Flom, Gabriel"]
[Result "0-1"]
[ECO "A48"]
[WhiteElo "2197"]
[BlackElo "2442"]
[Annotator "TA"]
[PlyCount "76"]
[EventDate "2022.06.09"]
[EventType "team-tourn"]
[EventCountry "FRA"]
[SourceTitle "playchess.com"]
[Source "ChessBase"]
[SourceQuality "1"]
[TimeControl "40/5400+30:1800+30"]

{[%evp 10,76,-1,1,28,14,33,13,51,26,26,27,31,-28,-19,-4,0,0,26,24,39,25,50,-17,37,16,15,21,34,-7,30,23,22,24,38,8,8,8,10,0,23,0,0,0,53,0,0,0,0,-21,0,-89,-84,-86,-75,-76,-21,-50,-57,-60,-50,-52,-52,-106,-110,-193,-172,-166,-179]} 1. Nf3 {[%emt 0:00:04]} g6 {[%emt 0:02:55]} 2. d4 {[%emt 0:03:46]} Nf6 {[%emt 0:01:27]} 3. b3 {[%emt 0:01:07]} Bg7 {[%emt 0:00:45]} 4. Bb2 {[%emt 0:00:18]} O-O {[%emt 0:02:05]} 5. g3 {[%emt 0:01:14]} d5 {[%emt 0:00:56]} 6. Bg2 {[%emt 0:00:30]} Bg4 {[%emt 0:02:15][%cal Oc7c5] A48: 1 d4 Nf6 2 Nf3 g6: Torre, London and Colle Systems.} 7. Nbd2 {[%emt 0:01:03]} c6 {[%emt 0:00:09]} 8. c4 {[%emt 0:02:04] [#]} h6 $146 {[%emt 0:00:50] The position is equal.} ({Predecessor:} 8... Bxf3 9. Bxf3 e6 10. O-O Nbd7 11. Qc2 Qe7 12. Rfe1 Rfd8 13. e4 dxe4 14. Nxe4 Nxe4 15. Rxe4 Nf6 16. Re2 Qc7 17. Rae1 Rd7 18. Bc3 Rad8 {0-1 (60) Xu,M (2305)-Lin,C (2526) China 2016}) 9. Ne5 {[%emt 0:04:25]} Bf5 {[%emt 0:00:02]} 10. f3 {[%emt 0:04:57]} Nfd7 {[%emt 0:08:18]} 11. Nxd7 {[%emt 0:03:58]} (11. f4 $14) 11... Qxd7 {[%emt 0:00:28]} 12. O-O {[%emt 0:04:51]} Bh3 {[%emt 0:03:13]} 13. e4 {[%emt 0:05:28]} Bxg2 {[%emt 0:00:23]} 14. Kxg2 {[%emt 0:00:09]} dxe4 {[%emt 0:00:03]} 15. Nxe4 {[%emt 0:00:13]} Na6 {[%emt 0:01:06][%cal Oc6c5]} 16. Qd2 {[%emt 0:15:18]} (16. Qe2 $14) 16... b5 {[%emt 0:12:53]} (16... f5 $11 17. Nf2 e5) 17. Rfd1 {[%emt 0:14:12]} bxc4 {[%emt 0:00:33]} 18. bxc4 {[%emt 0:00:20]} Rab8 {[%emt 0:00:05][%cal Oc6c5]} 19. Ba3 {[%emt 0:06:37] Prevents c5.} f5 {[%emt 0:08:29]} 20. Nc5 {[%emt 0:01:27]} Nxc5 {[%emt 0:00:05]} 21. Bxc5 {[%emt 0:00:08]} Rb7 {[%emt 0:00:21]} 22. Qe2 {[%emt 0:04:00]} Rfb8 {[%emt 0:02:32]} 23. Rd2 {[%emt 0:01:20]} Bf6 {[%emt 0:00:03]} 24. Re1 {[%emt 0:02:33]} Kf7 {[%emt 0:00:13]} 25. f4 {[%emt 0:03:24]} h5 {[%emt 0:01:04]} 26. h4 {[%emt 0:00:29]} a5 {[%emt 0:00:16]} (26... Rb1 $11) 27. Qe3 {[%emt 0:01:36]} ({White should try} 27. Qd3 $1 $14) 27... Rb1 $11 {[%emt 0:01:36]} 28. Rxb1 {[%emt 0:11:25]} Rxb1 {[%emt 0:00:01]} 29. Qd3 {[%emt 0:02:17]} Re1 {[%emt 0:02:05]} 30. d5 {[%emt 0:01:29]} (30. Rd1 $11 {keeps the balance.} Qe6 31. Rxe1 Qxe1 32. a3) 30... cxd5 $17 {[%emt 0:00:33][%cal Od5d4] Strongly threatening ...d4!} 31. Qxd5+ {[%emt 0:00:16]} Qxd5+ {[%emt 0:00:27]} 32. cxd5 {[%emt 0:00:05][%mdl 4096] Endgame KRB-KRB} Re4 {[%emt 0:00:58]} ({Black should play} 32... Rc1 $17 33. Bb6 a4) 33. Kf3 {[%emt 0:01:07]} Rc4 {[%emt 0:00:06]} 34. Bb6 {[%emt 0:00:26]} Rc3+ {[%emt 0:00:12]} 35. Kf2 {[%emt 0:00:20]} a4 {[%emt 0:00:07]} 36. Ba5 {[%emt 0:00:21]} (36. Be3 $15) 36... Rc4 {[%emt 0:00:01]} 37. a3 {[%emt 0:00:52]} (37. Bb6 $17) 37... Bd4+ $19 {[%emt 0:01:43]} 38. Ke2 {[%emt 0:03:30] [#] Kd3 is the strong threat.} Bc5 $1 {[%emt 0:00:06] Weighted Error Value: White=0.27 (precise) /Black=0.16 (very precise)} 0-1

[Event "FRA-ch Teams Top 16-A 2022"]
[Site "Chartres"]
[Date "2022.06.15"]
[Round "7.30"]
[White "Shchekachev, Andrei"]
[Black "Mendeiros, Jerome"]
[Result "1-0"]
[ECO "D45"]
[WhiteElo "2508"]
[BlackElo "2097"]
[Annotator "TA"]
[PlyCount "69"]
[EventDate "2022.06.09"]
[EventType "team-tourn"]
[EventCountry "FRA"]
[SourceTitle "playchess.com"]
[Source "ChessBase"]
[SourceQuality "1"]
[TimeControl "40/5400+30:1800+30"]

{[%evp 14,69,6,0,0,0,0,0,0,0,9,0,20,0,0,0,0,0,9,0,17,17,20,0,33,15,76,22,44,26,67,36,53,43,141,134,184,180,171,170,186,177,177,177,222,231,218,221,226,216,463,439,476,470,454,461,477,454]} 1. Nf3 {[%emt 0:00:05]} d5 {[%emt 0:00:27]} 2. d4 {[%emt 0:01:03]} Nf6 {[%emt 0:00:14]} 3. c4 {[%emt 0:00:14]} c6 {[%emt 0:00:06]} 4. Nc3 {[%emt 0:01:09]} e6 {[%emt 0:00:13]} 5. e3 {[%emt 0:04:31]} Nbd7 {[%emt 0:01:06]} 6. Be2 {[%emt 0:00:10]} Bd6 {[%emt 0:00:41]} 7. O-O {[%emt 0:01:12]} O-O {[%emt 0:00:23]} 8. b3 {[%emt 0:00:07]} b6 {[%emt 0:01:41] D45: Semi-Slav: 5 e3.} 9. Bb2 {[%emt 0:00:08]} Bb7 {[%emt 0:00:17]} 10. Bd3 {[%emt 0:00:51]} Qe7 {[%emt 0:05:38] The position is equal.} 11. Re1 {[%emt 0:04:35]} Rfe8 {[%emt 0:08:39]} 12. a4 {[%emt 0:13:46]} a5 {[%emt 0:06:04]} 13. Qc2 {[%emt 0:12:14] [#]} Bb4 $146 {[%emt 0:08:45]} ({Predecessor:} 13... e5 14. dxe5 Nxe5 15. Nxe5 Qxe5 16. g3 dxc4 17. bxc4 Qe7 18. Ne2 Bb4 19. Red1 g6 20. Nf4 Rad8 21. h3 c5 22. Rac1 Rd6 23. Bf1 Red8 24. Bxf6 Qxf6 25. Rxd6 Rxd6 26. Rd1 {½-½ (26) Baciak,M (2240)-Bolignano,G (2316) ICCF email 2018}) 14. Red1 {[%emt 0:08:36]} Rac8 {[%emt 0:03:58]} 15. Qe2 {[%emt 0:01:39]} g6 {[%emt 0:19:01]} 16. e4 {[%emt 0:06:27]} dxe4 {[%emt 0:01:41]} 17. Nxe4 {[%emt 0:00:21]} Nxe4 {[%emt 0:00:35]} 18. Bxe4 {[%emt 0:01:05]} Qf8 {[%emt 0:03:11]} (18... f5 $5 {[%cal Rf5e4]} 19. Bc2 Rcd8 $11) 19. Ne5 {[%emt 0:01:53]} Red8 {[%emt 0:05:39]} (19... Nxe5 $1 $11 {keeps the balance.} 20. dxe5 Red8) 20. h4 {[%emt 0:02:49]} (20. f4 $16) 20... Be7 {[%emt 0:04:56]} 21. g3 {[%emt 0:03:00]} Ba8 {[%emt 0:03:21]} 22. Bf3 {[%emt 0:09:53] [#] Black must now prevent d5. White is much more active.} Bf6 {[%emt 0:02:57]} 23. c5 {[%emt 0:09:37]} Nxe5 {[%emt 0:05:50]} ({Black should try} 23... Bxe5 $14 24. dxe5 Nxc5) 24. dxe5 $16 {[%emt 0:00:09]} Be7 {[%emt 0:00:23]} (24... Bg7 $16) 25. cxb6 $18 {[%emt 0:02:06] Threatens to win with Bc3.} Bc5 {[%emt 0:00:26]} 26. Qa6 $36 {[%emt 0:02:09][%mdl 2048] [#] And now b7 would win. White is in control.} Rb8 {[%emt 0:00:20] Prevents b7.} 27. Qxa5 {[%emt 0:00:59] aiming for Rxd8.} Bxb6 {[%emt 0:00:28]} 28. Qc3 {[%emt 0:00:39]} Qc5 {[%emt 0:01:06]} 29. Rxd8+ {[%emt 0:03:54]} Rxd8 {[%emt 0:00:07]} 30. Qxc5 {[%emt 0:00:04]} Bxc5 {[%emt 0:00:04]} 31. Rc1 {[%emt 0:01:16]} Bxf2+ {[%emt 0:05:59]} (31... Bb6 {is a better defense.}) 32. Kxf2 {[%emt 0:00:06] White is clearly winning.} Rd2+ {[%emt 0:00:05]} 33. Ke3 {[%emt 0:00:07]} Rxb2 {[%emt 0:00:02]} 34. Rc3 {[%emt 0:00:07]} Kf8 {[%emt 0:00:24]} 35. Kd4 {[%emt 0:01:03] Weighted Error Value: White=0.09 (flawless) /Black=0.29 (precise)} 1-0